lending/lending_fUSD_20260110
["ID","MTS","AMOUNT","RATE_DAILY","PERIOD"]
[401189876,1768031449955,-150.0,0.0001784,2]
[401189877,1768031449965,-150.0,0.00017845,2]
[401189878,1768031449975,-561.2,0.00017853,2]
[401189879,1768031449984,-190.53827758,0.00017855,2]
[401189880,1768031449994,-196.55099073,0.00017855,2]
[401189881,1768031450004,-161.3110552,0.00017855,2]
[401189882,1768031450014,-170.88856341,0.00017855,2]
[401189883,1768031450024,-200.0,0.00017855,2]
[401189884,1768031450033,-2000.0,0.00017856,2]
[401189885,1768031450044,-200.0,0.00017856,2]
[401189886,1768031450053,-200.0,0.00017856,2]
[401189887,1768031450062,-150.0,0.00017857,2]
[401189888,1768031450071,-150.0,0.00017862,2]
[401189889,1768031450081,-501.30688292,0.00017863,2]
[401189890,1768031450091,-150.0,0.00017865,2]
[401189891,1768031450101,-190.53827758,0.00017873,2]
[401189892,1768031450110,-196.55099073,0.00017873,2]
[401189893,1768031450119,-161.3110552,0.00017873,2]
[401189894,1768031450129,-170.88856341,0.00017873,2]
[401189895,1768031450139,-150.0,0.00017877,2]
[401189896,1768031450149,-150.0,0.0001788,2]
[401189897,1768031450158,-500.0,0.00017882,2]
[401189898,1768031450168,-1514.73825484,0.00017882,2]
[401189899,1768031450178,-2464.03631718,0.00017882,2]
[401189900,1768031450188,-3479.95468316,0.00017882,2]
[401189901,1768031450198,-4502.9853,0.00017882,2]
[401189902,1768031450208,-150.0,0.00017884,2]
[401189903,1768031450218,-190.53827758,0.00017891,2]
[401189904,1768031450228,-196.55099073,0.00017891,2]
[401189905,1768031450238,-161.3110552,0.00017891,2]
[401189906,1768031450249,-150.0,0.00017891,2]
[401189907,1768031450259,-170.88856341,0.00017891,2]
[401189908,1768031450270,-25000.0,0.00017891,3]
[401189909,1768031450279,-150.0,0.00017898,2]
[401189910,1768031450289,-25000.0,0.000179,3]
[401189911,1768031450298,-591.38897096,0.000179,2]
[401189912,1768031450307,-170.32473985,0.000179,2]
[401189913,1768031450317,-162.0,0.000179,3]
[401189914,1768031450326,-162.0,0.000179,3]
[401189915,1768031450336,-162.0,0.000179,2]
[401189916,1768031450346,-162.0,0.000179,2]
[401189917,1768031450355,-10000.0,0.000179,2]
[401189918,1768031450365,-6228.92016198,0.000179,3]
[401189919,1768031450375,-1000.0,0.000179,2]
[401189920,1768031450385,-1712.34976734,0.000179,2]
[401189921,1768031450395,-1908.19922497,0.000179,2]
[401189922,1768031450405,-1009.14113428,0.000179,2]
[401189923,1768031450415,-19102.14113598,0.000179,2]
[401189924,1768031450424,-179.38897292,0.000179,3]
[401189925,1768031450434,-1050.65296813,0.000179,2]
[401189926,1768031450443,-1050.65296808,0.000179,2]
[401189927,1768031450452,-1050.65296808,0.000179,2]
[401189928,1768031450462,-1050.65296808,0.000179,2]
[401189929,1768031450471,-1050.65296808,0.000179,2]
[401189930,1768031450481,-1050.65296808,0.000179,2]
[401189931,1768031450491,-1050.65296808,0.000179,2]
[401189932,1768031450502,-1050.65296808,0.000179,2]
[401189933,1768031450514,-1050.65296808,0.000179,2]
[401189934,1768031450525,-8111.0,0.000179,2]
[401189935,1768031450535,-150.0,0.00017903,2]
[401189936,1768031450546,-150.0,0.00017908,2]
[401189937,1768031450556,-190.53827758,0.00017909,2]
[401189938,1768031450566,-196.55099073,0.00017909,2]
[401189939,1768031450579,-161.3110552,0.00017909,2]
[401189940,1768031450589,-170.88856341,0.00017909,2]
[401189941,1768031450599,-150.0,0.0001791,2]
[401189942,1768031450610,-150.0,0.00017918,2]
[401189943,1768031450619,-150.0,0.0001792,2]
[401189944,1768031450630,-150.0,0.00017923,2]
[401189945,1768031450641,-561.2,0.00017926,2]
[401189946,1768031450651,-190.53827758,0.00017927,2]
[401189947,1768031450662,-196.55099073,0.00017927,2]
[401189948,1768031450672,-161.3110552,0.00017927,2]
[401189949,1768031450682,-170.88856341,0.00017927,2]
[401189950,1768031450692,-150.0,0.00017939,2]
[401189951,1768031450702,-150.0,0.00017942,2]
[401189952,1768031450712,-303.0,0.00017945,2]
[401189953,1768031450723,-190.53827758,0.00017945,2]
[401189954,1768031450733,-196.55099073,0.00017945,2]
[401189955,1768031450743,-161.3110552,0.00017945,2]
[401189956,1768031450754,-150.0,0.00017945,2]
[401189957,1768031450763,-170.88856341,0.00017945,2]
[401189958,1768031450773,-181.00537575,0.00017946,2]
[401189959,1768031450783,-150.0,0.00017954,2]
[401189960,1768031450794,-150.0,0.00017959,2]
[401189961,1768031450803,-150.0,0.0001796,2]
[401189962,1768031450814,-150.0,0.00017961,2]
[401189963,1768031450824,-190.53827758,0.00017964,2]
[401189964,1768031450833,-196.55099073,0.00017964,2]
[401189965,1768031450843,-161.3110552,0.00017964,2]
[401189966,1768031450853,-170.88856341,0.00017964,2]
[401189967,1768031450863,-500.0,0.00017973,2]
[401189968,1768031450873,-610.19552731,0.00017973,2]
[401189969,1768031450882,-500.0,0.00017973,2]
[401189970,1768031450892,-500.0,0.00017973,2]
[401189971,1768031450902,-500.0,0.00017973,2]
[401189972,1768031450912,-500.0,0.00017973,2]
[401189973,1768031450922,-500.0,0.00017973,2]
[401189974,1768031450931,-500.0,0.00017973,2]
[401189975,1768031450941,-500.0,0.00017973,2]
[401189976,1768031450951,-500.0,0.00017973,2]
[401189977,1768031450961,-500.0,0.00017973,2]
[401189978,1768031450970,-500.0,0.00017973,2]
[401189979,1768031450980,-300.29995774,0.00017973,2]
[401189980,1768031450989,-433.9562915,0.00017973,2]
[401189981,1768031450999,-260.97339631,0.00017973,2]
[401189982,1768031451009,-500.0,0.00017973,2]
[401189983,1768031451019,-641.77796518,0.00017973,2]
[401189984,1768031451030,-500.0,0.00017973,2]
[401189985,1768031451040,-500.0,0.00017973,2]
[401189986,1768031451050,-501.2767774,0.00017973,2]
[401189987,1768031451059,-500.0,0.00017973,2]
[401189988,1768031451069,-500.0,0.00017973,2]
[401189989,1768031451078,-500.0,0.00017973,2]
[401189990,1768031451088,-500.0,0.00017973,2]
[401189991,1768031451098,-500.0,0.00017973,2]
[401189992,1768031451108,-500.0,0.00017973,2]
[401189993,1768031451118,-500.0,0.00017973,2]
[401189994,1768031451128,-500.0,0.00017973,2]
[401189995,1768031451138,-500.0,0.00017973,2]
[401189996,1768031451148,-500.0,0.00017973,2]
[401189997,1768031451158,-500.0,0.00017973,2]
[401189998,1768031451168,-191.10319937,0.00017973,2]
[401189999,1768031451177,-500.0,0.00017973,2]
[401190000,1768031451188,-500.0,0.00017973,2]
[401190001,1768031451198,-500.0,0.00017973,2]
[401190002,1768031451207,-500.0,0.00017973,2]
[401190003,1768031451217,-500.0,0.00017973,2]
[401190004,1768031451227,-500.0,0.00017973,2]
[401190005,1768031451236,-500.85151996,0.00017973,2]
[401190006,1768031451246,-500.0,0.00017973,2]
[401190007,1768031451257,-500.0,0.00017973,2]
[401190008,1768031451267,-500.0,0.00017973,2]
[401190009,1768031451277,-571.47009533,0.00017973,2]
[401190010,1768031451287,-500.0,0.00017973,2]
[401190011,1768031451297,-150.34167383,0.00017973,2]
[401190012,1768031451307,-500.0,0.00017973,2]
[401190013,1768031451316,-500.0,0.00017973,2]
[401190014,1768031451326,-588.0072514,0.00017973,2]
[401190015,1768031451336,-500.0,0.00017973,2]
[401190016,1768031451346,-150.0,0.00017973,2]
[401190017,1768031451356,-150.0,0.00017973,2]
[401190018,1768031451365,-150.0,0.0001798,2]
[401190019,1768031451375,-527.72,0.0001798,2]
[401190020,1768031451385,-500.0,0.0001798,2]
[401190021,1768031451395,-500.0,0.0001798,2]
[401190022,1768031451405,-500.0,0.0001798,2]
[401190023,1768031451415,-500.0,0.0001798,2]
[401190024,1768031451425,-500.0,0.0001798,2]
[401190025,1768031451437,-150.0,0.00017981,2]
[401190026,1768031451447,-190.53827758,0.00017982,2]
[401190027,1768031451457,-196.55099073,0.00017982,2]
[401190028,1768031451468,-161.3110552,0.00017982,2]
[401190029,1768031451479,-170.88856341,0.00017982,2]
[401190030,1768031451489,-500.0,0.00017982,2]
[401190031,1768031451499,-510.74252443,0.0001799,2]
[401190032,1768031451510,-510.74252443,0.0001799,2]
[401190033,1768031451520,-276.645,0.00017999,2]
[401190034,1768031451530,-1006.5165,0.00017999,2]
[401190035,1768031451541,-300.0,0.00017999,2]
[401190036,1768031451551,-300.0,0.00017999,2]
[401190037,1768031451561,-671.12852877,0.00017999,2]
[401190038,1768031451571,-300.0,0.00017999,2]
[401190039,1768031451583,-666.0,0.00017999,2]
[401190040,1768031451594,-500.0,0.00017999,2]
[401190041,1768031451604,-500.0,0.00017999,2]
[401190042,1768031451614,-500.0,0.00017999,2]
[401190043,1768031451623,-500.0,0.00017999,2]
[401190044,1768031451634,-500.0,0.00017999,2]
[401190045,1768031451644,-500.0,0.00017999,2]
[401190046,1768031451654,-359.11221161,0.00017999,2]
[401190047,1768031451665,-190.53827758,0.00018,2]
[401190048,1768031451675,-196.55099073,0.00018,2]
[401190049,1768031451685,-196.21798024,0.00018,2]
[401190050,1768031451695,-174.78082205,0.00018,2]
[401190051,1768031451705,-161.3110552,0.00018,2]
[401190052,1768031451715,-223.10788253,0.00018,2]
[401190053,1768031451725,-156.68286018,0.00018,2]
[401190054,1768031451735,-298.52493072,0.00018,2]
[401190055,1768031451746,-170.88856341,0.00018,2]
[401190056,1768031451756,-231.22039699,0.00018,2]
[401190057,1768031451767,-252.12379273,0.00018,2]
[401190058,1768031451777,-157.59943203,0.00018,2]
[401190059,1768031451787,-247.12115074,0.00018,2]
[401190060,1768031451797,-219.82756291,0.00018,2]
[401190061,1768031451806,-1552194.52453625,0.00018,2]
[401190062,1768031452713,-314.7525975,0.00018,2]
[401190063,1768031452726,-2627.97539087,0.00018,2]
[401190064,1768031452738,-363.47003305,0.00018,2]
[401190065,1768031452901,-195.57826729,0.0001595,2]
[401190066,1768031452911,-920.21185233,0.000179,2]
[401190067,1768031453004,-199.76,0.00017264,2]
[401190068,1768031453014,-199.7575258,0.00017449,2]
[401190069,1768031453024,-130.44111575,0.000179,2]
[401190070,1768031453034,-159649.74111845,0.00018,2]
[401190071,1768031453054,-77946.60033211,0.00018,2]
[401190073,1768031660570,204.28560913,0.00023,120]
[401190079,1768032101163,-276.0,0.00015173,2]
[401190080,1768032101196,-3544.25730768,0.00015704,2]
[401190081,1768032101228,-475.74,0.00015729,2]
[401190082,1768032101463,-2500.0,0.0001595,2]
[401190083,1768032101707,-1692.9348,0.0001595,2]
[401190084,1768032101746,-3385.8696,0.0001595,2]
[401190085,1768032101984,-3228.2708,0.0001595,2]
[401190086,1768032102014,-1200.0,0.00016002,2]
[401190087,1768032102044,-300.0,0.00016002,2]
[401190088,1768032102215,-1144.919535,0.00016003,2]
[401190089,1768032102245,-342.46995354,0.00016003,2]
[401190090,1768032102277,-1000.0,0.0001602,2]
[401190091,1768032102310,-151.0,0.00016042,2]
[401190092,1768032102340,-151.0,0.00016042,2]
[401190093,1768032102375,-500.0,0.00016049,2]
[401190094,1768032102411,-500.0,0.00016049,2]
[401190095,1768032102447,-500.0,0.00016049,2]
[401190096,1768032102480,-500.0,0.00016049,2]
[401190097,1768032102537,-500.0,0.00016049,2]
[401190098,1768032102575,-500.0,0.00016049,2]
[401190099,1768032102611,-180.50991156,0.00016049,2]
[401190100,1768032102642,-1000.0,0.0001605,2]
[401190101,1768032114838,-4362.45849424,0.0001605,2]
[401190102,1768032114865,-10000.01,0.0001605,2]
[401190103,1768032115026,-10000.01,0.0001605,2]
[401190104,1768032115163,-10000.01,0.0001605,2]
[401190105,1768032115260,-10000.01,0.0001605,2]
[401190106,1768032115547,-10000.01,0.0001605,2]
[401190107,1768032270674,150.0,0.00020483,120]
[401190108,1768032554700,-500.0,0.00015173,2]
[401190109,1768032554719,-696.96188571,0.00015721,2]
[401190110,1768032554739,-1200.0,0.00015949,2]
[401190111,1768032554757,-1000.0,0.0001595,2]
[401190112,1768032554777,-167.41437807,0.00015982,2]
[401190113,1768032554797,-167.41437807,0.00015982,2]
[401190114,1768032554816,-151.0,0.0001603,2]
[401190115,1768032554836,-151.0,0.0001603,2]
[401190116,1768032554857,-300.0,0.00016049,2]
[401190117,1768032554877,-1000.0,0.00016049,2]
[401190118,1768032554896,-1000.0,0.00016049,2]
[401190123,1768032572691,-10000.0,0.0001605,2]
[401190124,1768032573859,-10000.0,0.0001605,2]
[401190125,1768032574483,-10000.0,0.0001605,2]
[401190126,1768032574903,-10000.0,0.0001605,2]
[401190127,1768032575336,-10000.0,0.0001605,2]
[401190128,1768032576170,-2175.3471165,0.00015982,2]
[401190129,1768032576195,-7824.6528835,0.0001605,2]
[401190130,1768032577021,-10000.0,0.0001605,2]
[401190131,1768032577634,-10000.0,0.0001605,2]
[401190132,1768032578266,-10000.0,0.0001605,2]
[401190133,1768032579395,-10000.0,0.0001605,2]
[401190134,1768032579885,-10000.0,0.0001605,2]
[401190135,1768032580595,-10000.0,0.0001605,2]
[401190136,1768032581284,-10000.0,0.0001605,2]
[401190137,1768032582066,-10000.0,0.0001605,2]
[401190138,1768032583000,-10000.0,0.0001605,2]
[401190139,1768032589889,-10000.01,0.0001605,2]
[401190140,1768032590300,-10000.01,0.0001605,2]
[401190141,1768032590429,-10000.01,0.0001605,2]
[401190142,1768032590636,-10000.01,0.0001605,2]
[401190143,1768032590852,-10000.01,0.0001605,2]
[401190144,1768032591394,-10000.01,0.0001605,2]
[401190145,1768032591519,-10000.01,0.0001605,2]
[401190146,1768032591639,-10000.01,0.0001605,2]
[401190147,1768032591782,-10000.01,0.0001605,2]
[401190148,1768032591923,-10000.01,0.0001605,2]
[401190149,1768032592090,-10000.01,0.0001605,2]
[401190150,1768032592219,-10000.01,0.0001605,2]
[401190151,1768032592346,-10000.01,0.0001605,2]
[401190152,1768032592449,-10000.01,0.0001605,2]
[401190153,1768032592604,-10000.01,0.0001605,2]
[401190154,1768032594297,-2368.0,0.0001605,2]
[401190155,1768032601026,-151.0,0.00016048,2]
[401190156,1768032601057,-151.0,0.00016048,2]
[401190157,1768032601105,-9396.01,0.0001605,2]
[401190158,1768032601142,-10000.01,0.0001605,2]
[401190159,1768032601265,-1200.0,0.00016049,2]
[401190160,1768032601312,-7600.01,0.0001605,2]
[401190161,1768032601383,-10000.01,0.0001605,2]
[401190162,1768032601521,-10000.01,0.0001605,2]
[401190163,1768032601667,-10000.01,0.0001605,2]
[401190164,1768032602259,-10000.01,0.0001605,2]
[401190165,1768032602285,-10000.01,0.0001605,2]
[401190166,1768032602299,-10000.01,0.0001605,2]
[401190167,1768032602312,-10000.01,0.0001605,2]
[401190168,1768032602582,-10000.01,0.0001605,2]
[401190169,1768032602822,-10000.01,0.0001605,2]
[401190171,1768032632244,-9142.74451606,0.0001595,2]
[401190172,1768032632307,-437.436765,0.0001595,2]
[401190173,1768032632319,-9044.75461084,0.0001595,2]
[401190174,1768032632332,-1171.15387376,0.0001595,2]
[401190175,1768032632375,-675.06,0.0001595,2]
[401190176,1768032632386,-434.30423461,0.0001595,2]
[401190177,1768032632397,-1707.54897056,0.0001595,2]
[401190178,1768032632410,-544.02,0.0001595,2]
[401190179,1768032632433,-1199.16049217,0.0001595,2]
[401190180,1768032632444,-559.2491887,0.0001595,2]
[401190183,1768032638356,-809.15187004,0.0001595,2]
[401190184,1768032638402,-456.0,0.0001595,2]
[401190185,1768032638448,-21510.68785286,0.0001595,2]
[401190186,1768032638494,-14444.81128427,0.0001595,2]
[401190225,1768032640783,-271.914219,0.0001587,2]
[401190226,1768032640792,-3410.92793608,0.0001595,2]
[401190227,1768032640808,-612.4781407,0.0001595,2]
[401190228,1768032640819,-4710.92486005,0.0001595,2]
[401190229,1768032640831,-2037.42497,0.0001595,2]
[401190230,1768032640844,-5082.63335371,0.0001595,2]
[401190231,1768032640856,-11520.23884485,0.0001595,2]
[401190232,1768032640868,-50435.29050206,0.0001595,2]
[401190233,1768032640879,-1516.59381822,0.0001595,2]
[401190234,1768032640891,-858537.40391546,0.0001595,2]
[401190235,1768032640900,-965.1888,0.0001595,2]
[401190236,1768032640910,-167.41437803,0.00015954,2]
[401190237,1768032640920,-151.0,0.00016054,2]
[401190238,1768032640929,-151.0,0.00016054,2]
[401190239,1768032640939,-2020.57272549,0.00016082,2]
[401190240,1768032640948,-1000.0,0.00016195,2]
[401190241,1768032640959,-2175.34711646,0.00016195,2]
[401190242,1768032640969,-255.68743637,0.000162,2]
[401190243,1768032640978,-150.0,0.000162,2]
[401190244,1768032640988,-263.75602621,0.000162,2]
[401190245,1768032640998,-150.0,0.000162,2]
[401190246,1768032641008,-178.71892515,0.000162,2]
[401190247,1768032641018,-150.0,0.000162,2]
[401190248,1768032641028,-150.0,0.000162,2]
[401190249,1768032641038,-150.0,0.000162,2]
[401190250,1768032641047,-229.31905987,0.000162,2]
[401190251,1768032641057,-150.0,0.000162,2]
[401190252,1768032641067,-150.0,0.000162,2]
[401190253,1768032641076,-150.0,0.000162,2]
[401190254,1768032641086,-999.0,0.00016203,3]
[401190255,1768032641096,-255.68743637,0.00016218,2]
[401190256,1768032641106,-263.75602621,0.00016218,2]
[401190257,1768032641115,-178.71892515,0.00016218,2]
[401190258,1768032641125,-229.31905987,0.00016218,2]
[401190259,1768032641134,-150.0,0.00016235,2]
[401190260,1768032641144,-255.68743637,0.00016236,2]
[401190261,1768032641154,-263.75602621,0.00016236,2]
[401190262,1768032641163,-178.71892515,0.00016236,2]
[401190263,1768032641172,-229.31905987,0.00016236,2]
[401190264,1768032641181,-150.0,0.00016241,2]
[401190265,1768032641191,-255.68743637,0.00016255,2]
[401190266,1768032641201,-263.75602621,0.00016255,2]
[401190267,1768032641210,-178.71892515,0.00016255,2]
[401190268,1768032641220,-229.31905987,0.00016255,2]
[401190269,1768032641229,-150.0,0.00016267,2]
[401190270,1768032641242,-150.0,0.00016269,2]
[401190271,1768032641252,-255.68743637,0.00016273,2]
[401190272,1768032641261,-263.75602621,0.00016273,2]
[401190273,1768032641271,-178.71892515,0.00016273,2]
[401190274,1768032641283,-229.31905987,0.00016273,2]
[401190275,1768032641293,-150.0,0.00016282,2]
[401190276,1768032641304,-2020.57272545,0.00016284,2]
[401190277,1768032641315,-255.68743637,0.00016291,2]
[401190278,1768032641324,-263.75602621,0.00016291,2]
[401190279,1768032641335,-178.71892515,0.00016291,2]
[401190280,1768032641344,-229.31905987,0.00016291,2]
[401190281,1768032641356,-150.0,0.00016304,2]
[401190282,1768032641366,-255.68743637,0.00016309,2]
[401190283,1768032641376,-263.75602621,0.00016309,2]
[401190284,1768032641386,-178.71892515,0.00016309,2]
[401190285,1768032641395,-229.31905987,0.00016309,2]
[401190286,1768032641406,-150.0,0.00016312,2]
[401190287,1768032641417,-150.0,0.00016323,2]
[401190288,1768032641427,-255.68743637,0.00016327,2]
[401190289,1768032641436,-263.75602621,0.00016327,2]
[401190290,1768032641446,-178.71892515,0.00016327,2]
[401190291,1768032641455,-229.31905987,0.00016327,2]
[401190292,1768032641465,-150.0,0.00016333,2]
[401190293,1768032641475,-150.0,0.00016338,2]
[401190294,1768032641485,-255.68743637,0.00016345,2]
[401190295,1768032641494,-263.75602621,0.00016345,2]
[401190296,1768032641504,-178.71892515,0.00016345,2]
[401190297,1768032641513,-229.31905987,0.00016345,2]
[401190298,1768032641523,-255.68743637,0.00016364,2]
[401190299,1768032641532,-263.75602621,0.00016364,2]
[401190300,1768032641543,-178.71892515,0.00016364,2]
[401190301,1768032641554,-150.0,0.00016364,2]
[401190302,1768032641563,-229.31905987,0.00016364,2]
[401190303,1768032641574,-150.0,0.00016373,2]
[401190304,1768032641583,-150.0,0.00016379,2]
[401190305,1768032641594,-255.68743637,0.00016382,2]
[401190306,1768032641603,-263.75602621,0.00016382,2]
[401190307,1768032641613,-178.71892515,0.00016382,2]
[401190308,1768032641623,-229.31905987,0.00016382,2]
[401190309,1768032641632,-255.68743637,0.000164,2]
[401190310,1768032641642,-263.75602621,0.000164,2]
[401190311,1768032641651,-178.71892515,0.000164,2]
[401190312,1768032641660,-150.0,0.000164,2]
[401190313,1768032641670,-150.0,0.000164,2]
[401190314,1768032641680,-229.31905987,0.000164,2]
[401190315,1768032641689,-150.0,0.00016405,2]
[401190316,1768032641699,-150.0,0.00016408,2]
[401190317,1768032641710,-2175.34711646,0.00016408,2]
[401190318,1768032641719,-255.68743637,0.00016418,2]
[401190319,1768032641729,-263.75602621,0.00016418,2]
[401190320,1768032641739,-178.71892515,0.00016418,2]
[401190321,1768032641748,-229.31905987,0.00016418,2]
[401190322,1768032641758,-150.0,0.00016425,2]
[401190323,1768032641768,-255.68743637,0.00016436,2]
[401190324,1768032641777,-263.75602621,0.00016436,2]
[401190325,1768032641787,-178.71892515,0.00016436,2]
[401190326,1768032641796,-229.31905987,0.00016436,2]
[401190327,1768032641806,-500.0,0.00016438,2]
[401190328,1768032641816,-461.76756584,0.00016438,2]
[401190329,1768032641825,-500.0,0.00016438,2]
[401190330,1768032641835,-500.0,0.00016438,2]
[401190331,1768032641845,-500.0,0.00016438,2]
[401190332,1768032641854,-500.0,0.00016438,2]
[401190333,1768032641864,-500.0,0.00016438,2]
[401190334,1768032641874,-290.3172833,0.00016438,2]
[401190335,1768032641884,-500.0,0.00016438,2]
[401190336,1768032641894,-500.0,0.00016438,2]
[401190337,1768032641904,-500.0,0.00016438,2]
[401190338,1768032641913,-500.0,0.00016438,2]
[401190339,1768032641924,-500.0,0.00016438,2]
[401190340,1768032641934,-500.0,0.00016438,2]
[401190341,1768032641943,-500.0,0.00016438,2]
[401190342,1768032641952,-500.0,0.00016438,2]
[401190343,1768032641961,-500.0,0.00016438,2]
[401190344,1768032641971,-500.0,0.00016438,2]
[401190345,1768032641980,-500.0,0.00016438,2]
[401190346,1768032641989,-500.0,0.00016438,2]
[401190347,1768032641999,-500.0,0.00016438,2]
[401190348,1768032642008,-500.0,0.00016438,2]
[401190349,1768032642017,-600.0,0.00016438,2]
[401190350,1768032642027,-567.0,0.00016438,2]
[401190351,1768032642330,-13172.81,0.0001644,2]
[401190352,1768032642340,-150.0,0.00016442,2]
[401190353,1768032642350,-150.0,0.00016445,2]
[401190354,1768032642360,-255.68743637,0.00016455,2]
[401190355,1768032642370,-263.75602621,0.00016455,2]
[401190356,1768032642379,-178.71892515,0.00016455,2]
[401190357,1768032642388,-229.31905987,0.00016455,2]
[401190358,1768032642398,-161.9,0.00016456,2]
[401190359,1768032642408,-150.0,0.00016467,2]
[401190360,1768032642418,-255.68743637,0.00016473,2]
[401190361,1768032642427,-263.75602621,0.00016473,2]
[401190362,1768032642437,-178.71892515,0.00016473,2]
[401190363,1768032642447,-229.31905987,0.00016473,2]
[401190364,1768032642456,-150.0,0.00016477,2]
[401190365,1768032642466,-2020.57272545,0.00016486,2]
[401190366,1768032642476,-150.0,0.00016486,2]
[401190367,1768032642486,-255.68743637,0.00016491,2]
[401190368,1768032642495,-263.75602621,0.00016491,2]
[401190369,1768032642505,-178.71892515,0.00016491,2]
[401190370,1768032642514,-229.31905987,0.00016491,2]
[401190371,1768032642523,-255.68743637,0.00016509,2]
[401190372,1768032642533,-263.75602621,0.00016509,2]
[401190373,1768032642543,-178.71892515,0.00016509,2]
[401190374,1768032642552,-229.31905987,0.00016509,2]
[401190375,1768032642562,-150.0,0.00016512,2]
[401190376,1768032642571,-255.68743637,0.00016527,2]
[401190377,1768032642581,-263.75602621,0.00016527,2]
[401190378,1768032642590,-178.71892515,0.00016527,2]
[401190379,1768032642599,-150.0,0.00016527,2]
[401190380,1768032642609,-229.31905987,0.00016527,2]
[401190381,1768032642619,-150.0,0.00016533,2]
[401190382,1768032642628,-150.0,0.00016537,2]
[401190383,1768032642638,-255.68743637,0.00016545,2]
[401190384,1768032642647,-263.75602621,0.00016545,2]
[401190385,1768032642657,-178.71892515,0.00016545,2]
[401190386,1768032642666,-229.31905987,0.00016545,2]
[401190387,1768032642676,-150.0,0.00016546,2]
[401190388,1768032642686,-150.0,0.0001656,2]
[401190389,1768032642695,-255.68743637,0.00016564,2]
[401190390,1768032642705,-263.75602621,0.00016564,2]
[401190391,1768032642715,-178.71892515,0.00016564,2]
[401190392,1768032642725,-229.31905987,0.00016564,2]
[401190393,1768032642734,-150.0,0.00016568,2]
[401190394,1768032642744,-150.0,0.00016581,2]
[401190395,1768032642754,-255.68743637,0.00016582,2]
[401190396,1768032642764,-263.75602621,0.00016582,2]
[401190397,1768032642775,-178.71892515,0.00016582,2]
[401190398,1768032642784,-229.31905987,0.00016582,2]
[401190399,1768032642793,-255.68743637,0.000166,2]
[401190400,1768032642803,-263.75602621,0.000166,2]
[401190401,1768032642812,-178.71892515,0.000166,2]
[401190402,1768032642822,-150.0,0.000166,2]
[401190403,1768032642832,-150.0,0.000166,2]
[401190404,1768032642842,-229.31905987,0.000166,2]
[401190405,1768032642852,-150.0,0.00016609,2]
[401190406,1768032642862,-150.0,0.00016615,2]
[401190407,1768032642871,-255.68743637,0.00016618,2]
[401190408,1768032642881,-263.75602621,0.00016618,2]
[401190409,1768032642890,-178.71892515,0.00016618,2]
[401190410,1768032642900,-229.31905987,0.00016618,2]
[401190411,1768032642909,-2175.34711646,0.00016621,2]
[401190412,1768032642919,-255.68743637,0.00016636,2]
[401190413,1768032642929,-263.75602621,0.00016636,2]
[401190414,1768032642939,-178.71892515,0.00016636,2]
[401190415,1768032642949,-229.31905987,0.00016636,2]
[401190416,1768032642959,-150.0,0.0001665,2]
[401190417,1768032642969,-150.0,0.0001665,2]
[401190418,1768032642979,-150.0,0.0001665,2]
[401190419,1768032642988,-255.68743637,0.00016655,2]
[401190420,1768032642998,-263.75602621,0.00016655,2]
[401190421,1768032643007,-178.71892515,0.00016655,2]
[401190422,1768032643018,-229.31905987,0.00016655,2]
[401190423,1768032643027,-150.0,0.00016667,2]
[401190424,1768032643037,-255.68743637,0.00016673,2]
[401190425,1768032643047,-263.75602621,0.00016673,2]
[401190426,1768032643057,-178.71892515,0.00016673,2]